Workbook

Sheet 成本資料和圖表
B1: 成本分析 - 柏拉圖
B2: 所有成本中心之年度成本累計百分比的柏拉圖位於儲存格 B2 到 E3。
B4: 成本分析
B5: 成本中心 | C5: 整年成本 | D5: 總計百分比 | E5: 累計百分比
B6: 零件與原料 | C6: NT$1,325,000.00 | D6: =IFERROR(資料[[#This Row],[整年成本 ]]/SUM(資料[[整年成本 ]]), "") -> 31.17% | E6: =IFERROR(SUM(INDEX(資料[總計百分比],1):資料[[#This Row],[總計百分比]]), "") -> 31.17%
B7: 製造設備 | C7: NT$900,500.00 | D7: =IFERROR(資料[[#This Row],[整年成本 ]]/SUM(資料[[整年成本 ]]), "") -> 21.19% | E7: =IFERROR(SUM(INDEX(資料[總計百分比],1):資料[[#This Row],[總計百分比]]), "") -> 52.36%
B8: 薪資 | C8: NT$575,000.00 | D8: =IFERROR(資料[[#This Row],[整年成本 ]]/SUM(資料[[整年成本 ]]), "") -> 13.53% | E8: =IFERROR(SUM(INDEX(資料[總計百分比],1):資料[[#This Row],[總計百分比]]), "") -> 65.89%
B9: 維護 | C9: NT$395,000.00 | D9: =IFERROR(資料[[#This Row],[整年成本 ]]/SUM(資料[[整年成本 ]]), "") -> 9.29% | E9: =IFERROR(SUM(INDEX(資料[總計百分比],1):資料[[#This Row],[總計百分比]]), "") -> 75.18%
B10: 辦公室租金 | C10: NT$295,000.00 | D10: =IFERROR(資料[[#This Row],[整年成本 ]]/SUM(資料[[整年成本 ]]), "") -> 6.94% | E10: =IFERROR(SUM(INDEX(資料[總計百分比],1):資料[[#This Row],[總計百分比]]), "") -> 82.12%
B11: 倉儲租金 | C11: NT$250,000.00 | D11: =IFERROR(資料[[#This Row],[整年成本 ]]/SUM(資料[[整年成本 ]]), "") -> 5.88% | E11: =IFERROR(SUM(INDEX(資料[總計百分比],1):資料[[#This Row],[總計百分比]]), "") -> 88.00%
B12: 保險 | C12: NT$180,000.00 | D12: =IFERROR(資料[[#This Row],[整年成本 ]]/SUM(資料[[整年成本 ]]), "") -> 4.23% | E12: =IFERROR(SUM(INDEX(資料[總計百分比],1):資料[[#This Row],[總計百分比]]), "") -> 92.24%
B13: 福利與津貼 | C13: NT$130,000.00 | D13: =IFERROR(資料[[#This Row],[整年成本 ]]/SUM(資料[[整年成本 ]]), "") -> 3.06% | E13: =IFERROR(SUM(INDEX(資料[總計百分比],1):資料[[#This Row],[總計百分比]]), "") -> 95.29%
B14: 車輛 | C14: NT$125,000.00 | D14: =IFERROR(資料[[#This Row],[整年成本 ]]/SUM(資料[[整年成本 ]]), "") -> 2.94% | E14: =IFERROR(SUM(INDEX(資料[總計百分比],1):資料[[#This Row],[總計百分比]]), "") -> 98.24%
B15: 研究 | C15: NT$75,000.00 | D15: =IFERROR(資料[[#This Row],[整年成本 ]]/SUM(資料[[整年成本 ]]), "") -> 1.76% | E15: =IFERROR(SUM(INDEX(資料[總計百分比],1):資料[[#This Row],[總計百分比]]), "") -> 100.00%
B16: 合計 | C16: =SUBTOTAL(109,資料[[整年成本 ]]) -> NT$4,250,500.00 | D16: =SUBTOTAL(109,資料[總計百分比]) -> 100.00%
